bitfinex/quotes_ETHUSD_20240701
["timestamp","ask_amount","ask_price","bid_price","bid_amount"]
[1719802725028,2.85325,3504.8,3504.4,2.4079]
[1719802729668,2.85331,3504.7,3504.4,2.4079]
[1719802730892,2.85331,3504.7,3504.2,0.35627908]
[1719802731188,2.85331,3504.7,3504.2,1.20227908]
[1719802731352,2.85331,3504.7,3504.3,1.07955001]
[1719802733412,2.85331,3504.7,3504.3,1.92555001]
[1719802733861,2.85315,3504.9,3504.3,1.92555001]
[1719802734491,2.85315,3504.9,3504.3,1.07955001]
[1719802734696,2.85315,3504.9,3504.3,1.92555001]
[1719802737669,5.85275,3505.4,3504.4,4.09811522]
[1719802737868,5.85275,3505.4,3504.6,0.846]
[1719802737869,2.85283,3505.3,3504.6,0.846]
[1719802738063,3.846,3505.4,3504.3,3.0]
[1719802738291,3.846,3505.4,3504.4,0.846]
[1719802738292,2.85307,3505.0,3504.4,0.846]
[1719802738601,2.85307,3505.0,3504.3,1.29495001]
[1719802738799,2.85307,3505.0,3504.3,2.14095001]
[1719802740166,2.85325,3504.8,3504.2,0.35627908]
[1719802740367,2.85325,3504.8,3504.1,9.593221]
[1719802742716,2.85325,3504.8,3504.1,2.2747]
[1719802743219,2.85325,3504.8,3504.2,0.846]
[1719802744818,2.85297,3505.2,3504.5,0.846]
[1719802745124,3.0,3505.1,3504.5,1.22167202]
[1719802745482,3.0,3505.1,3504.7,0.846]
[1719802745780,3.0,3505.3,3504.7,0.846]
[1719802747823,3.0,3505.3,3504.7,1.21616349]
[1719802748426,2.85298,3505.1,3504.0,2.4695]
[1719802748726,2.85316,3504.9,3504.0,2.4695]
[1719802749383,2.85316,3504.9,3504.1,0.846]
[1719802752024,3.0,3505.3,3504.2,0.05707001]
[1719802752025,2.85307,3505.0,3504.2,0.05707001]
[1719802752236,3.0,3504.9,3504.3,0.337257]
[1719802752526,3.0,3504.9,3504.3,1.183257]
[1719802753090,3.0,3504.9,3504.5,2.3212]
[1719802753283,3.0,3505.1,3504.6,0.35615238]
[1719802753715,3.0,3505.1,3504.7,2.37826421]
[1719802754031,6.07252,3506.1,3505.1,2.3212]
[1719802754187,6.07252,3506.1,3505.1,2.37825256]
[1719802754381,6.07247,3506.1,3505.1,2.37825256]
[1719802754693,6.07247,3506.1,3505.1,2.3212]
[1719802754694,2.85242,3505.8,3505.1,2.3212]
[1719802755123,0.846,3505.7,3504.9,7.318521]
[1719802755321,2.85267,3505.5,3504.9,7.318521]
[1719802755528,3.0,3505.4,3504.9,7.318521]
[1719802758420,5.85274,3505.4,3504.9,7.318521]
[1719802760618,5.85274,3505.4,3504.8,2.3212]
[1719802761191,5.85274,3505.4,3504.8,3.40538734]
[1719802761723,3.0,3505.4,3504.9,0.846]
[1719802761903,3.0,3505.5,3504.9,0.846]
[1719802765134,2.981547,3506.1,3505.4,0.846]
[1719802765135,2.85218,3506.1,3505.4,0.846]
[1719802765323,2.85218,3506.1,3505.5,0.32569]
[1719802765527,2.85227,3506.0,3505.4,0.846]
[1719802765695,2.85227,3506.0,3505.3,0.05705002]
[1719802765896,2.85227,3506.0,3505.2,2.4109]
[1719802766113,2.85234,3505.9,3505.2,2.4109]
[1719802766318,0.846,3505.8,3505.1,7.318521]
[1719802766623,2.85259,3505.6,3505.1,7.318521]
[1719802768598,6.69845,3505.8,3505.1,7.318521]
[1719802769445,2.85252,3505.7,3505.1,7.318521]
[1719802769653,2.85252,3505.7,3504.9,5.4366]
[1719802770752,2.85252,3505.7,3504.9,5.82106687]
[1719802774147,2.85252,3505.7,3505.0,0.846]
[1719802775809,3.0,3505.8,3505.0,0.846]
[1719802776038,5.85243,3505.8,3505.0,0.846]
[1719802777826,2.8525,3505.7,3505.0,0.846]
[1719802778410,2.8525,3505.7,3504.9,5.82106687]
[1719802784469,5.2281,3505.7,3504.9,5.82106687]
[1719802785272,5.2281,3505.7,3505.0,1.50697752]
[1719802787960,5.2281,3505.7,3505.0,2.35297752]
[1719802789861,2.85259,3505.6,3505.0,2.35297752]
[1719802790297,2.85314,3504.9,3504.8,7.318521]
[1719802790609,2.3768,3505.0,3504.2,2.4705]
[1719802790610,2.85329,3504.8,3504.2,2.4705]
[1719802791015,2.85329,3504.8,3504.2,3.3165]
[1719802791388,2.3768,3505.0,3504.2,3.3165]
[1719802791389,5.22994,3505.0,3504.2,3.3165]
[1719802791587,2.3768,3505.0,3504.2,3.3165]
[1719802791821,2.8532,3504.9,3504.2,3.3165]
[1719802792404,2.85324,3504.8,3504.2,3.3165]
[1719802794289,5.85288,3505.3,3504.6,0.846]
[1719802794492,3.0,3505.3,3504.6,0.846]
[1719802795027,3.0,3505.2,3504.6,0.846]
[1719802795226,5.2625,3505.4,3504.6,0.846]
[1719802795911,2.85291,3505.2,3504.6,0.846]
[1719802796129,3.0,3505.1,3504.7,0.05705985]
[1719802796593,5.85283,3505.3,3504.6,1.86136046]
[1719802797389,5.85283,3505.3,3504.7,0.05705986]
[1719802798425,3.0,3505.3,3504.8,3.326]
[1719802798631,3.0,3505.3,3504.9,0.43984203]
[1719802799649,2.85247,3505.8,3505.0,0.846]
[1719802799942,2.85247,3505.8,3505.1,0.05705332]
[1719802800096,2.85247,3505.8,3505.1,3.72466386]
[1719802800430,2.84616,3505.8,3505.1,3.72466386]
[1719802801132,3.0,3505.7,3505.1,3.72466386]
[1719802801493,2.9,3505.7,3505.1,3.72466386]
[1719802802232,2.9,3505.7,3505.2,0.846]
[1719802802405,2.9,3505.7,3505.3,0.45706639]
[1719802802603,5.24985,3506.0,3505.3,0.51411893]
[1719802803333,2.85222,3506.1,3505.3,2.79391893]
[1719802803733,3.0,3506.0,3505.3,2.79391893]
[1719802804531,3.0,3506.0,3505.6,0.846]
[1719802804909,2.85193,3506.4,3505.6,1.20999189]
[1719802805338,2.85193,3506.4,3505.6,1.26703681]
[1719802806438,3.0,3506.3,3505.6,1.26703681]
[1719802807330,2.85169,3506.7,3506.0,0.846]
[1719802807534,2.85179,3506.6,3506.0,0.846]
[1719802807711,2.4376,3506.3,3505.7,7.318521]
[1719802807906,2.85234,3505.9,3505.7,7.318521]
[1719802808134,2.85234,3505.9,3505.2,3.0]
[1719802808135,0.846,3505.8,3505.2,3.0]
[1719802808632,2.85234,3505.9,3505.2,3.0]
[1719802808859,0.846,3506.0,3505.1,10.30863154]
[1719802808860,2.8525,3505.7,3505.1,10.30863154]
[1719802809194,5.2901,3505.7,3505.1,7.98613154]
[1719802809400,5.2901,3505.7,3505.1,7.318521]
[1719802809949,2.8526,3505.6,3505.1,7.318521]
[1719802810167,5.2901,3505.7,3505.1,7.318521]
[1719802810338,2.85258,3505.6,3505.1,7.318521]
[1719802810853,2.4376,3505.7,3505.1,10.318521]
[1719802811038,2.4376,3505.7,3505.1,12.91404322]
[1719802811239,2.85243,3505.8,3505.1,12.91404322]
[1719802812546,2.85257,3505.6,3505.1,12.91404322]
[1719802813441,2.85247,3505.8,3505.1,12.91404322]
[1719802814260,2.85247,3505.8,3505.1,5.59552222]
[1719802814873,2.8525,3505.7,3505.1,5.59552222]
[1719802815674,0.846,3505.9,3504.8,21.811021]
[1719802815877,2.85296,3505.2,3504.8,7.318521]
[1719802816171,2.85309,3505.0,3504.8,7.318521]
[1719802816420,2.85299,3505.1,3504.5,3.1623]
[1719802816589,2.85299,3505.1,3504.5,6.07044547]
[1719802816788,2.85299,3505.1,3504.5,6.0133821]
[1719802816990,2.85299,3505.1,3504.5,9.0133821]
[1719802817344,2.85283,3505.3,3504.5,9.0133821]
[1719802817689,2.8529,3505.2,3504.6,2.40433821]
[1719802818390,2.8529,3505.2,3504.7,0.846]
[1719802820096,2.8529,3505.2,3504.6,2.40433821]
[1719802820319,2.8529,3505.2,3504.6,0.846]
[1719802823261,2.85298,3505.1,3504.6,0.846]
[1719802823464,2.85298,3505.1,3504.5,5.6145478]
[1719802824335,2.85298,3505.1,3504.4,3.706]
[1719802824336,2.8533,3504.8,3504.4,2.86]
[1719802824640,2.85327,3504.8,3504.1,2.3872]
[1719802825182,2.85333,3504.7,3504.1,2.3872]
[1719802826320,2.85333,3504.7,3504.2,0.846]
[1719802828442,2.85296,3505.2,3504.4,0.846]
[1719802828578,3.0,3505.1,3504.4,0.846]
[1719802829418,2.85312,3505.0,3504.4,0.846]
[1719802830234,2.85315,3504.9,3504.4,0.846]
[1719802830915,2.85324,3504.8,3504.4,0.846]
[1719802831732,2.85331,3504.7,3504.4,0.846]
[1719802832024,2.8534,3504.6,3504.2,0.32332]
[1719802832329,2.8534,3504.6,3504.2,1.16932]
[1719802833826,2.8535,3504.5,3504.2,0.846]
[1719802834038,5.32903,3504.8,3503.8,12.812721]
[1719802834039,2.85355,3504.4,3503.8,12.812721]
[1719802834329,2.85355,3504.4,3504.0,0.846]
[1719802839551,2.85306,3505.0,3504.2,0.846]
[1719802839712,2.85332,3504.7,3503.8,5.79227071]
[1719802839911,2.85336,3504.7,3504.3,0.846]
[1719802840416,2.85339,3504.6,3504.3,0.846]
[1719802841752,2.85332,3504.7,3503.9,0.57922707]
[1719802841911,2.85332,3504.7,3504.0,0.846]
[1719802841912,5.13652,3504.7,3504.0,0.846]
[1719802842119,5.13652,3504.7,3504.0,1.56774978]
[1719802843064,2.85355,3504.4,3504.0,1.56774978]
[1719802843422,2.85355,3504.4,3504.0,0.72174978]
[1719802843621,2.85355,3504.4,3504.0,1.56774978]
[1719802844941,2.85364,3504.3,3503.8,2.79227071]
[1719802845148,2.85372,3504.2,3503.8,2.79227071]
[1719802845455,2.85388,3504.0,3503.8,0.29807071]
[1719802846022,2.85396,3503.9,3503.8,0.29807071]
[1719802846352,2.85396,3503.9,3503.5,3.1845]
[1719802847127,2.85405,3503.8,3503.5,3.1845]
[1719802847350,2.8542,3503.6,3503.0,3.0]
[1719802847551,2.85437,3503.4,3503.1,0.846]
[1719802847763,2.85437,3503.4,3503.2,0.31351]
[1719802847937,2.85437,3503.4,3502.9,2.2891]
[1719802848142,2.85437,3503.4,3502.9,3.1351]
[1719802848555,2.85437,3503.4,3503.1,0.846]
[1719802848961,2.85437,3503.4,3502.9,2.2891]
[1719802849273,2.85437,3503.4,3503.0,0.846]
[1719802849470,2.85437,3503.4,3503.1,1.0453621]
[1719802850976,2.85429,3503.5,3503.1,1.0453621]
[1719802851358,2.85429,3503.5,3502.9,2.2891]
[1719802851762,2.85429,3503.5,3502.9,5.2891]
[1719802852533,2.85437,3503.4,3502.9,5.2891]
[1719802856585,2.85425,3503.6,3502.9,5.2891]
[1719802858257,2.85425,3503.6,3502.9,5.58672037]
[1719802858583,2.85425,3503.6,3503.0,0.55867204]
[1719802859788,2.85429,3503.5,3503.0,0.55867204]
[1719802860345,5.70865,3503.5,3503.0,0.55867204]
[1719802860477,5.70865,3503.5,3502.9,5.58672037]
[1719802860676,2.85437,3503.4,3502.9,2.58672037]
[1719802860992,2.85445,3503.3,3502.9,2.58672037]
[1719802861155,2.85454,3503.2,3502.9,0.29762037]
[1719802861359,2.85478,3502.9,3502.5,7.318521]
[1719802862289,2.85478,3502.9,3502.5,7.63766017]
[1719802862611,2.3909,3503.7,3502.6,2.3368]
[1719802862795,2.84144479,3503.5,3502.6,2.39389504]
[1719802862993,2.85453,3503.2,3502.6,2.39389504]
[1719802863203,2.85453,3503.2,3502.6,2.3368]
[1719802863410,2.85453,3503.2,3502.7,1.02720569]
[1719802864083,2.85453,3503.2,3502.8,0.05709142]
[1719802864272,5.85439,3503.4,3502.8,0.05709142]
[1719802866220,0.598256,3504.5,3502.9,2.3294]
[1719802866221,2.85397,3503.9,3502.9,2.3294]
[1719802866517,2.85397,3503.9,3503.0,0.05708772]
[1719802866518,3.380187,3503.9,3503.0,0.05708772]
[1719802866725,2.85397,3503.9,3503.0,0.05708772]
[1719802867585,3.0,3503.8,3503.0,0.05708772]
[1719802867881,2.85414,3503.7,3503.0,0.05708772]
[1719802869801,2.85414,3503.7,3503.2,0.846]
[1719802870323,2.85414,3503.7,3503.2,1.16924877]
[1719802871112,2.4082,3504.0,3503.2,1.16924877]
[1719802871113,2.85357,3504.4,3503.6,0.846]
[1719802871317,2.4203,3504.5,3504.0,0.846]
[1719802871632,2.4203,3504.9,3504.2,0.846]
[1719802872145,2.85328,3504.8,3504.2,0.846]
[1719802873086,2.85341,3504.6,3504.0,0.846]
[1719802873293,2.85349,3504.5,3503.8,3.2926]
[1719802874315,2.85349,3504.5,3503.8,3.361287]
[1719802875290,5.85334,3504.7,3503.8,3.361287]
[1719802875488,3.0,3504.7,3503.9,0.05707143]
[1719802876720,3.0,3504.7,3503.8,6.215307]
[1719802876911,3.0,3504.7,3503.9,0.9215307]
[1719802877641,2.4203,3504.9,3503.9,0.9215307]
[1719802878491,2.85346,3504.6,3503.9,0.9215307]
[1719802880536,2.85323,3504.8,3503.9,0.9215307]
[1719802880537,2.85347,3504.5,3503.9,0.9215307]
[1719802882012,5.4203,3504.9,3503.6,3.0]
[1719802882205,2.85381,3504.1,3503.6,3.0]
[1719802882460,2.85381,3504.1,3503.4,2.4347]
[1719802883012,2.85373,3504.2,3503.4,2.4347]
[1719802883213,2.85396,3503.9,3503.4,2.4347]
[1719802883414,2.85396,3503.9,3503.4,3.74234698]
[1719802883655,2.85384,3504.1,3503.4,3.74234698]
[1719802885111,2.85389,3504.0,3503.4,3.74234698]
[1719802890947,2.85357,3504.4,3503.5,0.05707958]
[1719802891150,5.85363,3504.3,3503.6,1.39723876]
[1719802891329,2.85363,3504.3,3503.6,1.39723876]
[1719802892247,2.85351,3504.5,3503.7,2.488]
[1719802892576,3.0,3504.4,3503.8,0.67395088]
[1719802894443,3.0,3504.5,3503.9,2.488]
[1719802894790,2.85308,3505.0,3504.1,2.488]
[1719802894991,2.8529,3505.2,3504.2,0.05706531]
[1719802895281,2.8529,3505.2,3504.3,0.75760653]
[1719802895460,2.8529,3505.2,3504.4,0.05706541]
[1719802895934,2.85275,3505.4,3504.8,0.846]
[1719802896075,2.85275,3505.4,3504.5,2.488]
[1719802896076,2.85256,3505.7,3505.3,0.846]
[1719802896280,3.137856,3505.6,3505.3,0.846]
[1719802896516,2.3009,3506.0,3505.0,0.846]
[1719802896517,2.85272,3505.5,3505.0,0.846]
[1719802897289,2.8528,3505.4,3505.0,0.846]
[1719802898022,2.8528,3505.4,3504.8,7.318521]
[1719802899305,5.34704,3506.7,3504.9,2.4889]
[1719802899505,5.34704,3506.7,3505.0,10.721571]
[1719802899506,2.85232,3506.0,3505.0,10.721571]
[1719802899730,2.85234,3505.9,3505.0,7.868521]
[1719802899922,2.85234,3505.9,3505.1,1.84082631]
[1719802909855,2.85243,3505.8,3505.1,1.84082631]
[1719802911483,2.85264,3505.6,3505.0,7.318521]
[1719802911689,2.85286,3505.3,3505.0,7.318521]
[1719802915497,2.85296,3505.2,3505.0,7.318521]
[1719802915652,2.85296,3505.2,3504.6,2.3731]
[1719802915854,2.85296,3505.2,3504.6,4.93502275]
[1719802916381,2.85299,3505.1,3504.6,4.93502275]
[1719802916581,2.85299,3505.1,3504.5,7.318521]
[1719802916582,2.85324,3504.8,3504.3,2.2731]
[1719802919854,2.85324,3504.8,3504.4,0.846]
[1719802920302,2.85314,3505.0,3504.3,2.2731]
[1719802920488,2.85291,3505.2,3504.6,0.846]
[1719802920657,2.85299,3505.1,3504.6,0.846]
[1719802920998,2.85299,3505.1,3504.8,0.846]
[1719802921391,2.85282,3505.3,3505.0,0.846]
[1719802921560,3.0,3505.2,3505.0,0.846]
[1719802921757,3.0,3505.2,3504.8,0.846]
[1719802921995,5.85291,3505.2,3504.8,0.846]
[1719802925116,5.85291,3505.2,3504.6,0.846]
[1719802925596,0.870565,3505.1,3504.3,2.2731]
[1719802925780,2.85328,3504.8,3504.2,7.318521]
[1719802926009,2.85328,3504.8,3504.2,8.164521]
[1719802927458,2.85328,3504.8,3504.4,0.846]
[1719802931425,2.85314,3505.0,3504.0,2.2638]
[1719802931426,0.846,3505.0,3504.0,2.2638]
[1719802931571,2.85352,3504.5,3504.1,0.846]
[1719802932681,2.85356,3504.4,3504.1,0.846]
[1719802934474,2.85356,3504.4,3503.9,0.29802279]
[1719802934811,2.85356,3504.4,3503.9,1.14402279]
[1719802935105,5.1557,3504.6,3503.9,1.14402279]
[1719802935309,2.85363,3504.3,3503.9,1.14402279]
[1719802936990,2.85388,3504.0,3503.9,0.29802279]
[1719802937188,2.85388,3504.0,3503.4,7.318521]
[1719802937189,2.85414,3503.7,3503.4,7.318521]
[1719802937630,2.85422,3503.6,3503.4,7.318521]
[1719802939027,2.85404,3503.8,3503.4,7.318521]
[1719802939528,2.85413,3503.7,3503.4,7.318521]
[1719802940589,6.1629,3504.2,3503.4,7.318521]
[1719802940823,2.85386,3504.1,3503.5,2.2577]
[1719802941135,2.85386,3504.1,3503.5,4.5169221]
[1719802942720,2.85389,3504.0,3503.5,4.5169221]
[1719802944306,2.85405,3503.8,3503.5,2.2577]
[1719802946114,2.85388,3504.0,3503.5,2.2577]
[1719802949766,5.85372,3504.2,3503.6,0.846]
[1719802949920,5.85338,3504.7,3504.0,0.846]
[1719802950115,2.85348,3504.5,3504.1,2.3136]
[1719802950434,2.85348,3504.5,3504.2,0.846]
[1719802950622,5.85338,3504.7,3504.1,2.3136]
[1719802951332,2.85341,3504.6,3504.1,2.3136]
[1719802952276,3.0,3504.7,3504.1,2.62956]
[1719802952927,2.2604,3505.2,3504.1,2.62956]
[1719802952928,3.0,3504.6,3504.1,2.62956]
[1719802953132,0.846,3504.8,3504.1,2.62956]
[1719802953677,2.85353,3504.5,3504.1,2.62956]
[1719802953833,2.85353,3504.5,3504.1,2.3136]
[1719802954023,2.85353,3504.5,3503.8,3.3122]
[1719802955294,2.85356,3504.4,3503.8,3.3122]
[1719802958240,2.85339,3504.6,3503.8,3.3122]
[1719802958441,2.85348,3504.5,3503.8,4.99047687]
[1719802959388,2.85335,3504.7,3503.8,4.99047687]
[1719802959610,3.0,3504.6,3503.8,7.84450687]
[1719802959762,3.0,3504.6,3503.9,0.78445069]
[1719802960398,5.8534,3504.6,3503.9,0.78445069]
[1719802962392,5.8534,3504.6,3504.0,0.846]
[1719802963972,3.0,3504.6,3504.0,0.846]
[1719802964168,3.0,3504.6,3504.0,0.90307134]
[1719802964373,2.85291,3505.2,3504.4,0.846]
[1719802964575,2.85267,3505.5,3504.8,0.846]
[1719802965257,2.85282,3505.3,3504.8,0.846]
[1719802966075,3.0,3505.2,3504.8,0.846]
[1719802967002,3.0,3505.4,3504.8,0.846]
[1719802967215,5.85274,3505.4,3504.8,0.846]
[1719802968107,3.0,3505.4,3504.8,0.846]
[1719802968425,2.85264,3505.6,3504.8,0.846]
[1719802968426,3.0,3505.5,3504.8,0.846]
[1719802968714,3.0,3505.5,3504.8,4.36337887]
[1719802968891,3.0,3505.7,3504.8,4.36337887]
[1719802969088,2.85244,3505.8,3505.0,0.846]
[1719802969288,2.85244,3505.8,3505.0,1.51951789]
[1719802969915,3.69844,3505.8,3505.0,1.51951789]
[1719802970598,3.0,3505.7,3505.0,1.51951789]
[1719802971215,2.85259,3505.6,3505.0,1.51951789]
[1719802971413,2.85259,3505.6,3504.8,0.66417887]
[1719802971593,2.85259,3505.6,3504.8,1.51017887]
[1719802973582,3.0,3505.7,3504.8,1.453118]
[1719802973583,2.85267,3505.5,3504.8,1.453118]
[1719802973779,3.69877,3505.4,3504.7,9.690321]
[1719802974520,2.85277,3505.4,3504.7,9.690321]
[1719802974884,2.85277,3505.4,3504.7,10.536321]
[1719802975181,2.85277,3505.4,3504.7,3.2178]
[1719802975384,2.85277,3505.4,3504.7,4.8567861]
[1719802975998,2.85261,3505.6,3504.9,0.846]
[1719802976207,2.85268,3505.5,3504.7,4.8567861]
[1719802976417,0.846,3505.4,3504.7,1.6389861]
[1719802976589,2.4025,3505.3,3504.5,3.846]
[1719802976791,2.85291,3505.2,3504.5,3.846]
[1719802982337,2.85291,3505.2,3504.5,3.0]
[1719802982504,2.85304,3505.1,3504.4,9.655821]
[1719802982689,2.85061361,3505.1,3504.4,9.655821]
[1719802984826,2.85061361,3505.1,3504.5,0.846]
[1719802985427,2.85307,3505.0,3504.5,0.846]
[1719802985983,2.85307,3505.0,3504.4,9.655821]
[1719802986132,2.85307,3505.0,3504.4,10.501821]
[1719802986576,2.85307,3505.0,3504.4,11.15350884]
[1719802987156,2.85307,3505.0,3504.4,3.83498784]
[1719802991983,2.85318,3504.9,3504.4,3.83498784]
[1719802993675,3.0,3505.7,3504.8,0.846]
[1719802993871,2.85261,3505.6,3505.3,0.846]
[1719802994086,2.3229,3506.1,3505.5,0.846]
[1719802994087,2.85242,3505.8,3505.5,0.846]
[1719802994242,2.85225,3506.0,3505.5,0.846]
[1719802994442,2.449,3506.4,3505.4,2.4395]
[1719802994443,2.85234,3505.9,3505.4,2.4395]
[1719802994641,2.8525,3505.7,3505.4,2.4395]
[1719802994886,2.85244,3505.8,3505.4,2.4395]
[1719802997775,2.85235,3505.9,3505.4,2.4395]
[1719802998352,5.8521,3506.2,3505.4,2.76805]
[1719803001789,3.0,3506.2,3505.4,2.76805]
[1719803001950,3.0,3506.1,3505.4,2.4395]
[1719803002147,3.846,3506.3,3505.4,2.4395]
[1719803002866,2.85218,3506.1,3505.4,2.4395]
[1719803003080,3.0,3506.0,3505.4,2.4395]
[1719803008539,3.0,3506.2,3505.4,2.4395]
[1719803008723,3.0,3506.2,3505.4,3.05333]
[1719803009991,5.85212,3506.2,3505.4,3.05333]
[1719803013329,3.0,3506.2,3505.7,0.846]
[1719803013551,2.85161,3506.8,3505.9,0.846]
[1719803013552,3.0,3506.7,3505.9,0.846]
[1719803013690,3.285161,3506.7,3505.9,0.846]
[1719803013888,2.85177,3506.6,3505.9,0.846]
[1719803014131,3.0,3506.5,3505.9,0.846]
[1719803014731,2.85168,3506.7,3505.9,0.846]
[1719803014906,2.85168,3506.7,3506.0,2.4895]
[1719803015306,2.85154,3506.9,3506.0,2.4895]
[1719803015493,2.85154,3506.9,3506.1,0.846]
[1719803015695,2.2694,3507.1,3506.0,2.4895]
[1719803015696,2.2694,3507.4,3506.3,3.698]
[1719803015906,2.2694,3507.4,3506.5,0.846]
[1719803015907,2.85122,3507.3,3506.5,0.846]
[1719803016113,3.732999,3507.3,3506.5,0.846]
[1719803016312,0.881779,3507.3,3506.5,0.846]
[1719803016532,1.727779,3507.3,3506.5,0.846]
[1719803017056,4.578979,3507.3,3506.5,0.846]
[1719803017222,3.0,3507.2,3506.5,0.846]
[1719803017930,3.0,3507.2,3506.6,2.4292]
[1719803019202,3.0,3507.2,3506.7,0.846]
[1719803021321,3.0,3507.4,3506.7,0.846]
[1719803022007,3.0,3507.5,3506.9,0.846]
[1719803022845,5.85087,3507.7,3506.9,0.846]
[1719803023762,2.85095,3507.6,3506.9,0.846]
[1719803023965,3.0,3507.5,3506.9,0.846]
[1719803024168,3.0,3507.5,3506.9,1.447887]
[1719803024474,3.0,3507.5,3507.1,0.846]
[1719803024838,3.0,3507.5,3506.9,1.447887]
[1719803025041,3.0,3507.5,3507.1,0.846]
[1719803025243,3.0,3507.7,3507.2,2.3939]
[1719803025638,5.85088,3507.7,3507.2,2.3939]
[1719803025839,2.85088,3507.7,3507.2,2.3939]
[1719803026040,3.0,3507.6,3507.2,2.3939]
[1719803026477,2.85088,3507.7,3507.2,2.3939]
[1719803027479,2.85088,3507.7,3507.2,2.71789]
[1719803031547,2.85095,3507.6,3507.2,2.71789]
[1719803032243,2.85095,3507.6,3507.2,2.3939]
[1719803032889,2.85128,3507.2,3506.3,2.412]
[1719803033039,2.85128,3507.2,3506.5,0.846]
[1719803033454,2.85128,3507.2,3506.3,2.412]
[1719803033649,2.85141,3507.1,3506.5,0.846]
[1719803034041,2.85144,3507.0,3506.5,0.846]
[1719803034743,2.85128,3507.2,3506.5,0.846]
[1719803034969,2.85137,3507.1,3506.7,0.846]
[1719803035385,2.85137,3507.1,3506.5,0.846]
[1719803035542,2.85137,3507.1,3506.5,0.7084408]
[1719803035737,2.85137,3507.1,3506.7,0.846]
[1719803036183,2.85144,3507.0,3506.5,1.5544408]
[1719803037178,2.85119,3507.3,3506.7,0.846]
[1719803037179,2.85132,3507.2,3506.7,0.846]
[1719803039678,2.8512,3507.3,3506.7,0.846]
[1719803039890,2.85128,3507.2,3506.7,1.31499488]
[1719803040390,2.85113,3507.4,3506.9,0.846]
[1719803042208,2.85113,3507.4,3507.0,2.2938]
[1719803042506,3.14026964,3509.0,3507.3,0.846]
[1719803042507,2.85072,3507.9,3507.3,0.846]
[1719803042807,2.83657463,3507.8,3507.5,2.4522]
[1719803044819,3.846,3508.2,3507.0,7.318521]
[1719803045110,2.85118,3507.4,3507.1,2.4162]
[1719803047613,2.85127,3507.2,3506.8,2.2623]
[1719803050701,2.2779,3507.8,3506.8,2.2623]
[1719803050702,2.8508,3507.8,3507.1,0.846]
[1719803050933,5.2934,3508.2,3507.6,0.846]
[1719803050934,2.85071,3507.9,3507.6,0.846]
[1719803051127,2.85071,3507.9,3507.7,0.31112]
[1719803051327,2.85071,3507.9,3507.4,3.1112]
[1719803051702,2.85079,3507.8,3507.4,2.2652]
[1719803052430,2.85093,3507.7,3507.4,2.2652]
[1719803052740,2.85093,3507.7,3507.2,0.846]
[1719803053448,2.85104,3507.5,3507.1,2.3015]
[1719803054326,2.85104,3507.5,3507.1,2.75520816]
[1719803055326,2.85094,3507.7,3507.1,2.75520816]
[1719803055512,2.85094,3507.7,3507.2,0.846]
[1719803055737,2.85079,3507.8,3507.2,0.846]
[1719803055910,2.85079,3507.8,3507.3,0.36582323]
[1719803059539,2.85079,3507.8,3507.4,0.846]
[1719803062266,2.80079,3507.8,3507.4,0.846]
[1719803063294,2.80079,3507.8,3507.3,0.36582323]
[1719803065280,2.80079,3507.8,3507.4,0.846]
[1719803065880,2.85101,3507.6,3507.1,2.75520816]
[1719803066188,2.85101,3507.6,3507.2,0.846]
[1719803066979,2.85101,3507.6,3507.1,2.75520816]
[1719803067300,2.85101,3507.6,3507.1,3.60120816]
[1719803072496,2.85101,3507.6,3507.3,0.846]
[1719803074431,2.85064,3508.0,3507.5,0.846]
[1719803074633,3.0,3507.9,3507.5,0.846]
[1719803076350,5.85071,3507.9,3507.5,0.846]
[1719803076561,5.85071,3507.9,3507.3,1.20612082]
[1719803077069,2.85092,3507.7,3507.3,1.20612082]
[1719803077245,3.0,3507.9,3507.5,0.846]
[1719803077565,5.85063,3508.0,3507.5,0.846]
[1719803079692,3.0,3508.0,3507.5,0.846]
[1719803079986,2.85087,3507.7,3507.3,1.20612082]
[1719803080137,2.85075,3507.9,3507.3,1.20612082]
[1719803080341,2.85079,3507.8,3507.3,1.20612082]
[1719803081243,2.85064,3508.0,3507.4,0.3961329]
[1719803081445,5.85071,3507.9,3507.5,0.846]
[1719803085654,5.85071,3507.9,3507.3,0.36012082]
[1719803085855,2.85093,3507.7,3507.2,0.846]
[1719803086710,2.85113,3507.4,3507.1,2.75520816]
[1719803087327,2.2804,3507.7,3507.0,7.318521]
[1719803087328,5.7027,3507.1,3507.0,7.318521]
[1719803087472,2.85168,3506.7,3506.3,9.580121]
[1719803087672,2.85152,3506.9,3506.5,0.846]
[1719803087866,2.85152,3506.9,3506.5,1.15676]
[1719803089512,2.85152,3506.9,3506.7,0.846]
[1719803090771,2.85031,3508.4,3506.7,0.846]
[1719803090772,2.85126,3507.3,3506.7,0.846]
[1719803091126,2.85126,3507.3,3507.0,0.846]
[1719803091447,2.85107,3507.5,3507.0,1.15676]
[1719803091675,2.85107,3507.5,3507.0,0.846]
[1719803093645,2.85087,3507.7,3507.2,0.846]
[1719803093948,2.2804,3507.9,3507.2,0.846]